fUSD/lending_fUSD_20240409
["ID","MTS","AMOUNT","RATE_DAILY","PERIOD"]
[322001263,1712679046776,-512.62,0.00020547,2]
[322001264,1712679046785,-500.0,0.00020547,2]
[322001265,1712679046795,-891.48,0.00020547,2]
[322001266,1712679046805,-500.0,0.00020547,2]
[322001267,1712679046814,-1444.85,0.00020547,2]
[322001268,1712679046824,-500.0,0.00020547,2]
[322001269,1712679046833,-1013.5,0.00020547,2]
[322001270,1712679046843,-1198.24,0.00020547,2]
[322001271,1712679046852,-751.45,0.00020547,2]
[322001272,1712679046862,-780.87,0.00020547,2]
[322001273,1712679046871,-2114.04,0.00020547,2]
[322001274,1712679046880,-500.0,0.00020547,2]
[322001275,1712679046890,-500.0,0.00020547,2]
[322001276,1712679046900,-988.15,0.00020547,2]
[322001277,1712679046910,-623.98,0.00020547,2]
[322001278,1712679046919,-1345.9,0.00020547,2]
[322001279,1712679046928,-1311.7,0.00020547,2]
[322001280,1712679046937,-544.0,0.00020547,2]
[322001281,1712679046946,-398.26439,0.00020548,2]
[322001282,1712679046955,-5807.5017394,0.00020549,2]
[322001283,1712679046965,-4449.409,0.00020566,2]
[322001284,1712679046974,-5741.991,0.00020566,2]
[322001285,1712679046984,-324.438,0.00020566,2]
[322001286,1712679046993,-589.02641115,0.00020599,2]
[322001287,1712679047003,-584.0,0.000206,2]
[322001288,1712679047014,-82924.57699535,0.000206,2]
[322001289,1712679047142,-52566.18949323,0.000206,2]
[322001290,1712679047230,-2459.02752045,0.000206,2]
[322001291,1712679047241,-1199.98487513,0.000206,2]
[322001292,1712679047253,-781.05354106,0.000206,2]
[322001293,1712679047644,500.0,0.00019178,2]
[322001294,1712679047810,500.0,0.00019178,2]
[322001295,1712679047867,500.0,0.00019452,2]
[322001296,1712679047948,160.37759665,0.00019178,2]
[322001297,1712679048019,500.0,0.00019178,2]
[322001298,1712679048112,500.0,0.00019726,2]
[322001299,1712679048155,648.24,0.00019452,2]
[322001300,1712679048321,223.06,0.0002,2]
[322001301,1712679048361,500.0,0.00019178,2]
[322001302,1712679048497,500.0,0.00019452,2]
[322001303,1712679048543,500.0,0.00019178,2]
[322001304,1712679048574,-3991.22782801,0.00020173,2]
[322001305,1712679048584,-1637.11117101,0.00020271,2]
[322001306,1712679048593,-155.0,0.00020271,2]
[322001307,1712679048604,-395.06251376,0.00020271,2]
[322001308,1712679048613,-500.0,0.00020272,2]
[322001309,1712679048622,-1080.98550877,0.00020546,2]
[322001310,1712679048632,-1287.86223544,0.00020599,5]
[322001311,1712679048641,-9154.15714661,0.000206,2]
[322001312,1712679048653,-483.87719183,0.000206,2]
[322001313,1712679048664,-306.21779093,0.000206,2]
[322001314,1712679048689,-768.06384375,0.000206,2]
[322001315,1712679048741,500.0,0.00019726,2]
[322001316,1712679048754,-500.0,0.00020272,2]
[322001317,1712679048764,-257.39838594,0.000206,2]
[322001318,1712679048783,-332.63988604,0.000206,2]
[322001319,1712679048810,-500.0,0.00020546,2]
[322001320,1712679048819,-561.78116083,0.000206,2]
[322001321,1712679048831,-960.09842638,0.000206,2]
[322001322,1712679048843,-697.77555562,0.000206,2]
[322001323,1712679048855,-3814.42435161,0.000206,2]
[322001324,1712679048894,500.0,0.00019452,2]
[322001325,1712679048915,-2050.62030132,0.000206,2]
[322001326,1712679048934,-365.36033927,0.00020271,2]
[322001327,1712679048943,-1243.255569,0.000206,2]
[322001328,1712679048970,-35314.52522092,0.000206,2]
[322001329,1712679048981,-337082.18260995,0.000206,2]
[322001330,1712679049048,500.0,0.0002,2]
[322001331,1712679049110,500.0,0.00019726,2]
[322001332,1712679049146,500.0,0.00019178,2]
[322001333,1712679049258,500.0,0.0002,2]
[322001334,1712679049545,500.0,0.00019178,2]
[322001335,1712679049600,513.00816223,0.00019178,2]
[322001336,1712679049679,503.98009714,0.00019452,2]
[322001337,1712679049743,500.0,0.00019178,2]
[322001338,1712679049842,192.75861113,0.00019178,2]
[322001339,1712679049878,218.93,0.00019452,2]
[322001340,1712679050136,500.0,0.00019178,2]
[322001341,1712679050278,617.76,0.00019178,2]
[322001342,1712679050338,500.0,0.00019452,2]
[322001343,1712679050495,571.47,0.00019178,2]
[322001344,1712679050613,500.0,0.00019726,2]
[322001345,1712679050774,270.73467653,0.0002,2]
[322001346,1712679050817,500.0,0.00019178,2]
[322001347,1712679050900,500.0,0.00019178,2]
[322001348,1712679051223,500.0,0.00019452,2]
[322001349,1712679051377,500.0,0.00019178,2]
[322001350,1712679051896,501.43590686,0.00019178,2]
[322001351,1712679052246,541.48,0.00019726,2]
[322001352,1712679052437,532.22,0.00019178,2]
[322001353,1712679052526,741.95,0.00019178,2]
[322001354,1712679052749,532.22,0.00019452,2]
[322001355,1712679052870,621.8289501,0.00019178,2]
[322001356,1712679053117,741.95,0.00019452,2]
[322001357,1712679053157,532.22,0.00019726,2]
[322001358,1712679053459,532.22,0.0002,2]
[322001359,1712679053961,741.95,0.00019726,2]
[322001360,1712679054086,163.51,0.00015792,2]
[322001361,1712679054129,741.95,0.0002,2]
[322001362,1712679054177,942.96,0.00019178,2]
[322001363,1712679054402,942.96,0.00019452,2]
[322001364,1712679054537,364.93239064,0.00019178,2]
[322001365,1712679054996,942.96,0.00019726,2]
[322001366,1712679055256,942.96,0.0002,2]
[322001367,1712679055376,504.65825759,0.00019178,2]
[322001368,1712679055508,500.0,0.00019178,2]
[322001369,1712679055941,500.0,0.00019452,2]
[322001370,1712679056282,500.0,0.00019726,2]
[322001371,1712679056496,500.0,0.0002,2]
[322001372,1712679058298,500.0,0.00019178,2]
[322001373,1712679058616,500.0,0.00019452,2]
[322001374,1712679058724,500.0,0.00019178,2]
[322001375,1712679058890,500.0,0.00019726,2]
[322001376,1712679059012,500.0,0.00019452,2]
[322001377,1712679059170,500.0,0.0002,2]
[322001378,1712679059320,227.22,0.00019726,2]
[322001379,1712679060444,-38668.6256077,0.00020171,2]
[322001380,1712679060475,-233.7031591,0.00020171,2]
[322001381,1712679060505,-1062.06209167,0.00020171,2]
[322001382,1712679060532,-358.2133648,0.00020171,2]
[322001383,1712679060557,-155.49510119,0.00020171,2]
[322001384,1712679060584,-300.45982797,0.00020171,2]
[322001385,1712679060612,-202.59210874,0.00020171,2]
[322001386,1712679060638,-155.0,0.00020171,2]
[322001387,1712679060667,-11121.05170321,0.00020171,2]
[322001388,1712679060694,-535.92927112,0.00020171,2]
[322001389,1712679060721,-185.78135859,0.00020171,2]
[322001390,1712679060750,-155.27580194,0.00020171,2]
[322001391,1712679060780,-848.52162213,0.00020171,2]
[322001392,1712679060806,-213.1274998,0.00020171,2]
[322001393,1712679060834,-94467.39535867,0.00020172,2]
[322001394,1712679060861,-704.18979387,0.00020172,2]
[322001395,1712679060888,-473.96477759,0.00020172,2]
[322001396,1712679060914,-1100.82901549,0.00020172,2]
[322001397,1712679060943,-199.56493157,0.00020172,2]
[322001398,1712679060972,-56624.42185349,0.00020251,2]
[322001399,1712679061007,-7824.46187974,0.00020271,2]
[322001400,1712679061040,-500.0,0.00020271,2]
[322001401,1712679061067,-7485.32692737,0.00020271,2]
[322001402,1712679061097,-464.63554701,0.00020271,2]
[322001403,1712679061128,-268.00761418,0.00020271,2]
[322001404,1712679061159,-500.0,0.00020272,2]
[322001405,1712679061190,-1291.65,0.00020272,2]
[322001406,1712679061221,-500.0,0.00020272,2]
[322001407,1712679061252,-500.0,0.00020272,2]
[322001408,1712679061300,-653.62,0.00020272,2]
[322001409,1712679061333,-500.0,0.00020272,2]
[322001410,1712679061369,-1704.77,0.00020272,2]
[322001411,1712679061399,-500.0,0.00020272,2]
[322001412,1712679061446,-253.75,0.00020273,2]
[322001413,1712679061476,-501.31,0.00020273,2]
[322001414,1712679061505,-532.22,0.00020273,2]
[322001415,1712679061537,-741.95,0.00020273,2]
[322001416,1712679061565,-942.96,0.00020273,2]
[322001417,1712679061592,-500.0,0.00020273,2]
[322001418,1712679061621,-500.0,0.00020273,2]
[322001419,1712679061650,-3991.22782801,0.00020325,2]
[322001420,1712679061677,-3144.12142798,0.000204,2]
[322001421,1712679061705,-3991.22782801,0.00020477,2]
[322001422,1712679061733,-383.68131249,0.000205,2]
[322001423,1712679061761,-500.0,0.00020546,2]
[322001424,1712679061794,-500.0,0.00020546,2]
[322001425,1712679061820,-389.77,0.00020546,2]
[322001426,1712679061849,-1291.65,0.00020546,2]
[322001427,1712679061877,-653.62,0.00020546,2]
[322001428,1712679061906,-500.0,0.00020546,2]
[322001429,1712679061935,-1704.77,0.00020546,2]
[322001430,1712679061963,-10392.93966207,0.00020546,2]
[322001431,1712679061994,-553.0,0.00020547,2]
[322001432,1712679062025,-532.22,0.00020547,2]
[322001433,1712679062055,-741.95,0.00020547,2]
[322001434,1712679062088,-942.96,0.00020547,2]
[322001435,1712679062117,-500.0,0.00020547,2]
[322001436,1712679062146,-500.0,0.00020547,2]
[322001437,1712679062176,-695.11,0.00020548,2]
[322001438,1712679062205,-383.68131243,0.00020557,2]
[322001439,1712679062235,-155.0,0.00020599,2]
[322001440,1712679062262,-540.49275439,0.00020599,2]
[322001441,1712679062299,-38512.33198117,0.000206,2]
[322001442,1712679062324,-627.0,0.000206,2]
[322001443,1712679062351,-1752021.78139816,0.000206,3]
[322001444,1712679062377,-1044.06,0.000206,2]
[322001445,1712679062404,-561.96,0.000206,2]
[322001446,1712679062430,-205815.27920893,0.000206,3]
[322001447,1712679062459,-150.0,0.000206,2]
[322001448,1712679062486,-475.98397385,0.000206,3]
[322001449,1712679062513,-150.0,0.00020603,2]
[322001450,1712679062544,-520.36,0.00020603,2]
[322001451,1712679062572,-349.26,0.00020603,2]
[322001452,1712679062600,-161.57,0.00020603,2]
[322001453,1712679062627,-416.95,0.00020603,2]
[322001454,1712679062653,-150.0,0.00020603,2]
[322001455,1712679062678,-152.36,0.00020603,2]
[322001456,1712679062705,-3147.82800798,0.00020611,2]
[322001457,1712679062732,-159.56529,0.0002064,2]
[322001458,1712679062759,-605.0,0.00020664,2]
[322001459,1712679062788,-1648.193,0.00020664,2]
[322001460,1712679062814,-2449.245,0.00020664,2]
[322001461,1712679062843,-151.865,0.00020664,2]
[322001462,1712679062869,-200.0,0.00020681,2]
[322001463,1712679062897,-475.98397385,0.000207,3]
[322001464,1712679062926,-4991.55345343,0.00020715,2]
[322001465,1712679062956,-301.34505868,0.00020748,2]
[322001466,1712679062990,-5439.436148,0.00020748,2]
[322001467,1712679063026,-150.0,0.00020778,2]
[322001468,1712679063059,-5664.0145999,0.00020794,2]
[322001469,1712679063095,-5910.143127,0.000208,2]
[322001470,1712679063125,-8865.21469,0.000208,2]
[322001471,1712679063157,-11820.286254,0.000208,2]
[322001472,1712679063187,-14775.357817,0.000208,2]
[322001473,1712679063218,-20685.500944,0.000208,2]
[322001474,1712679063250,-475.98397385,0.000208,3]
[322001475,1712679063281,-549.81,0.0002082,2]
[322001476,1712679063312,-612.64,0.0002082,2]
[322001477,1712679063340,-941.89,0.0002082,2]
[322001478,1712679063368,-1153.9,0.0002082,2]
[322001479,1712679063397,-911.87,0.0002082,2]
[322001480,1712679063426,-500.0,0.0002082,2]
[322001481,1712679063455,-959.76,0.0002082,2]
[322001482,1712679063483,-914.05,0.0002082,2]
[322001483,1712679063515,-1091.67,0.0002082,2]
[322001484,1712679063546,-1155.4,0.0002082,2]
[322001485,1712679063575,-1896.61,0.0002082,2]
[322001486,1712679063603,-1029.41,0.0002082,2]
[322001487,1712679063636,-2736.04,0.0002082,2]
[322001488,1712679063666,-6138.33,0.0002082,2]
[322001489,1712679063699,-1705.06,0.0002082,2]
[322001490,1712679063729,-1542.46,0.0002082,2]
[322001491,1712679063759,-1283.86,0.0002082,2]
[322001492,1712679063791,-718.13,0.0002082,2]
[322001493,1712679063822,-500.0,0.0002082,2]
[322001494,1712679063853,-2082.51,0.0002082,2]
[322001495,1712679063883,-4959.41,0.0002082,2]
[322001496,1712679063912,-1553.58,0.0002082,2]
[322001497,1712679063943,-757.09,0.0002082,2]
[322001498,1712679063974,-784.9,0.0002082,2]
[322001499,1712679064004,-772.75,0.0002082,2]
[322001500,1712679064034,-2060.58,0.0002082,2]
[322001501,1712679064061,-500.0,0.0002082,2]
[322001502,1712679064088,-604.19,0.0002082,2]
[322001503,1712679064116,-1180.06,0.0002082,2]
[322001504,1712679064145,-500.0,0.0002082,2]
[322001505,1712679064175,-642.03,0.0002082,2]
[322001506,1712679064203,-335.14,0.0002082,2]
[322001507,1712679064233,-995.94,0.0002082,2]
[322001508,1712679064266,-2337.99,0.0002082,2]
[322001509,1712679064296,-3598.07,0.0002082,2]
[322001510,1712679064323,-500.0,0.0002082,2]
[322001511,1712679064352,-500.0,0.0002082,2]
[322001512,1712679064380,-500.0,0.0002082,2]
[322001513,1712679064408,-500.0,0.0002082,2]
[322001514,1712679064436,-500.0,0.0002082,2]
[322001515,1712679064464,-1291.65,0.0002082,2]
[322001516,1712679064492,-653.62,0.0002082,2]
[322001517,1712679064526,-500.0,0.0002082,2]
[322001518,1712679064556,-1704.77,0.0002082,2]
[322001519,1712679064584,-222.3990653,0.00020821,2]
[322001520,1712679064613,-500.0,0.00020821,2]
[322001521,1712679064644,-500.0,0.00020821,2]
[322001522,1712679064673,-500.0,0.00020821,2]
[322001523,1712679064703,-500.0,0.00020821,2]
[322001524,1712679064733,-500.0,0.00020821,2]
[322001525,1712679064762,-500.0,0.00020821,2]
[322001526,1712679064796,-500.0,0.00020821,2]
[322001527,1712679064828,-500.0,0.00020821,2]
[322001528,1712679064861,-706.5,0.00020821,2]
[322001529,1712679064895,-500.0,0.00020821,2]
[322001530,1712679064932,-500.0,0.00020821,2]
[322001531,1712679064967,-500.0,0.00020821,2]
[322001532,1712679065005,-500.0,0.00020821,2]
[322001533,1712679065059,-500.0,0.00020821,2]
[322001534,1712679065096,-500.0,0.00020821,2]
[322001535,1712679065132,-500.0,0.00020821,2]
[322001536,1712679065170,-500.0,0.00020821,2]
[322001537,1712679065203,-500.0,0.00020821,2]
[322001538,1712679065238,-500.0,0.00020821,2]
[322001539,1712679065270,-326.15634933,0.00020821,2]
[322001540,1712679065303,-500.0,0.00020821,2]
[322001541,1712679065334,-500.0,0.00020821,2]
[322001542,1712679065365,-629.67,0.00020821,2]
[322001543,1712679065396,-500.0,0.00020821,2]
[322001544,1712679065427,-500.0,0.00020821,2]
[322001545,1712679065460,-500.0,0.00020821,2]
[322001546,1712679065493,-500.0,0.00020821,2]
[322001547,1712679065524,-500.0,0.00020821,2]
[322001548,1712679065566,-500.0,0.00020821,2]
[322001549,1712679065596,-500.0,0.00020821,2]
[322001550,1712679065628,-500.0,0.00020821,2]
[322001551,1712679065660,-732.3,0.00020821,2]
[322001552,1712679065692,-500.0,0.00020821,2]
[322001553,1712679065724,-500.0,0.00020821,2]
[322001554,1712679065755,-500.0,0.00020821,2]
[322001555,1712679065786,-442.70821553,0.00020821,2]
[322001556,1712679065817,-500.0,0.00020821,2]
[322001557,1712679065850,-833.92,0.00020821,2]
[322001558,1712679065883,-500.0,0.00020821,2]
[322001559,1712679065916,-500.0,0.00020821,2]
[322001560,1712679065952,-519.4,0.00020821,2]
[322001561,1712679065985,-500.0,0.00020821,2]
[322001562,1712679066018,-500.0,0.00020821,2]
[322001563,1712679066682,-500.0,0.00020821,2]
[322001564,1712679066737,-399.553486,0.00020821,2]
[322001565,1712679066768,-545.1,0.00020821,2]
[322001566,1712679066799,-500.0,0.00020821,2]
[322001567,1712679066829,-500.0,0.00020821,2]
[322001568,1712679066860,-500.0,0.00020821,2]
[322001569,1712679066890,-500.0,0.00020821,2]
[322001570,1712679066919,-500.0,0.00020821,2]
[322001571,1712679066948,-500.0,0.00020821,2]
[322001572,1712679066977,-500.0,0.00020821,2]
[322001573,1712679067006,-500.0,0.00020821,2]
[322001574,1712679067036,-500.0,0.00020821,2]
[322001575,1712679067064,-237.86668204,0.00020821,2]
[322001576,1712679067093,-500.0,0.00020821,2]
[322001577,1712679067122,-500.0,0.00020821,2]
[322001578,1712679067150,-500.0,0.00020821,2]
[322001579,1712679067178,-570.41,0.00020821,2]
[322001580,1712679067207,-500.0,0.00020821,2]
[322001581,1712679067239,-781.68,0.00020821,2]
[322001582,1712679067271,-597.51,0.00020821,2]
[322001583,1712679067308,-500.0,0.00020821,2]
[322001584,1712679067335,-500.0,0.00020821,2]
[322001585,1712679067363,-500.0,0.00020821,2]
[322001586,1712679067389,-596.31,0.00020821,2]
[322001587,1712679067416,-500.0,0.00020821,2]
[322001588,1712679067442,-500.0,0.00020821,2]
[322001589,1712679067468,-500.0,0.00020821,2]
[322001590,1712679067495,-500.0,0.00020821,2]
[322001591,1712679067527,-500.0,0.00020821,2]
[322001592,1712679067555,-500.0,0.00020821,2]
[322001593,1712679067583,-501.5,0.00020821,2]
[322001594,1712679067612,-749.57,0.00020821,2]
[322001595,1712679067639,-500.0,0.00020821,2]
[322001596,1712679067666,-500.0,0.00020821,2]
[322001597,1712679067695,-526.78,0.00020821,2]
[322001598,1712679067723,-500.0,0.00020821,2]
[322001599,1712679067754,-193.68,0.00020821,2]
[322001600,1712679067788,-500.0,0.00020821,2]
[322001601,1712679067821,-500.0,0.00020821,2]
[322001602,1712679067854,-675.68,0.00020821,2]
[322001603,1712679067888,-500.0,0.00020821,2]
[322001604,1712679067920,-948.35,0.00020821,2]
[322001605,1712679067953,-500.0,0.00020821,2]
[322001606,1712679067986,-500.0,0.00020821,2]
[322001607,1712679068019,-500.0,0.00020821,2]
[322001608,1712679068055,-568.79248583,0.00020821,2]
[322001609,1712679068087,-500.0,0.00020821,2]
[322001610,1712679068117,-500.0,0.00020821,2]
[322001611,1712679068147,-709.88,0.00020821,2]
[322001612,1712679068174,-500.0,0.00020821,2]
[322001613,1712679068202,-500.0,0.00020821,2]
[322001614,1712679068231,-500.0,0.00020821,2]
[322001615,1712679068257,-588.57,0.00020821,2]
[322001616,1712679068286,-500.0,0.00020821,2]
[322001617,1712679068314,-500.0,0.00020821,2]
[322001618,1712679068340,-500.0,0.00020821,2]
[322001619,1712679068374,-767.64,0.00020821,2]
[322001620,1712679068402,-500.0,0.00020821,2]
[322001621,1712679068430,-500.0,0.00020821,2]
[322001622,1712679068456,-558.36,0.00020821,2]
[322001623,1712679068484,-156.63039274,0.00020821,2]
[322001624,1712679068510,-1069.26,0.00020821,2]
[322001625,1712679068538,-2239.58,0.00020821,2]
[322001626,1712679068565,-500.0,0.00020821,2]
[322001627,1712679068593,-500.0,0.00020821,2]
[322001628,1712679068623,-671.41,0.00020821,2]
[322001629,1712679068654,-500.0,0.00020821,2]
[322001630,1712679068684,-562.78,0.00020821,2]
[322001631,1712679068714,-578.22,0.00020821,2]
[322001632,1712679068744,-500.0,0.00020821,2]
[322001633,1712679068774,-500.0,0.00020821,2]
[322001634,1712679068805,-500.0,0.00020821,2]
[322001635,1712679068834,-500.0,0.00020821,2]
[322001636,1712679068865,-661.23,0.00020821,2]
[322001637,1712679068892,-565.6,0.00020821,2]
[322001638,1712679068919,-500.0,0.00020821,2]
[322001639,1712679068945,-424.16185285,0.00020821,2]
[322001640,1712679068973,-407.66317222,0.00020821,2]
[322001641,1712679069001,-500.0,0.00020821,2]
[322001642,1712679069031,-734.13,0.00020821,2]
[322001643,1712679069063,-847.96,0.00020821,2]
[322001644,1712679069091,-553.06,0.00020821,2]
[322001645,1712679069121,-500.0,0.00020821,2]
[322001646,1712679069149,-500.0,0.00020821,2]
[322001647,1712679069177,-1140.09,0.00020821,2]
[322001648,1712679069204,-527.9,0.00020821,2]
[322001649,1712679069233,-500.0,0.00020821,2]
[322001650,1712679069263,-2094.76,0.00020821,2]
[322001651,1712679069297,-573.69,0.00020821,2]
[322001652,1712679069325,-500.0,0.00020821,2]
[322001653,1712679069355,-499.80146867,0.00020821,2]
[322001654,1712679069381,-500.0,0.00020821,2]
[322001655,1712679069408,-500.0,0.00020821,2]
[322001656,1712679069437,-4197.27,0.00020821,2]
[322001657,1712679069470,-1571.2,0.00020821,2]
[322001658,1712679069508,-500.0,0.00020821,2]
[322001659,1712679069539,-500.0,0.00020821,2]
[322001660,1712679069568,-638.11,0.00020821,2]
[322001661,1712679069596,-2263.43,0.00020821,2]
[322001662,1712679069627,-500.0,0.00020821,2]
[322001663,1712679069656,-738.13,0.00020821,2]
[322001664,1712679069684,-500.0,0.00020821,2]
[322001665,1712679069712,-5736.27,0.00020821,2]
[322001666,1712679069740,-1072.64,0.00020821,2]
[322001667,1712679069768,-500.0,0.00020821,2]
[322001668,1712679069798,-3248.05,0.00020821,2]
[322001669,1712679069826,-851.69,0.00020821,2]
[322001670,1712679069854,-500.0,0.00020821,2]
[322001671,1712679069882,-5439.39,0.00020821,2]
[322001672,1712679069909,-500.0,0.00020821,2]
[322001673,1712679069937,-1506.11,0.00020821,2]
[322001674,1712679069967,-500.0,0.00020821,2]
[322001675,1712679069996,-2992.86,0.00020821,2]
[322001676,1712679070025,-647.11,0.00020821,2]
[322001677,1712679070057,-20628.1,0.00020821,2]
[322001678,1712679070087,-651.11,0.00020821,2]
[322001679,1712679070115,-500.0,0.00020821,2]
[322001680,1712679070142,-1069.58,0.00020821,2]
[322001681,1712679070169,-722.97,0.00020821,2]
[322001682,1712679070199,-500.0,0.00020821,2]
[322001683,1712679070228,-1657.13,0.00020821,2]
[322001684,1712679070257,-1939.07,0.00020821,2]
[322001685,1712679070293,-2952.71,0.00020821,2]
[322001686,1712679070324,-500.0,0.00020821,2]
[322001687,1712679070353,-500.0,0.00020821,2]
[322001688,1712679070381,-930.45,0.00020821,2]
[322001689,1712679070409,-593.53,0.00020821,2]
[322001690,1712679070436,-500.0,0.00020821,2]
[322001691,1712679070465,-500.0,0.00020821,2]
[322001692,1712679070496,-7894.27,0.00020821,2]
[322001693,1712679070528,-500.0,0.00020821,2]
[322001694,1712679070557,-500.0,0.00020821,2]
[322001695,1712679070590,-3126.09,0.00020821,2]
[322001696,1712679070620,-500.0,0.00020821,2]
[322001697,1712679070649,-665.84,0.00020821,2]
[322001698,1712679070677,-1607.35,0.00020821,2]
[322001699,1712679070704,-500.0,0.00020821,2]
[322001700,1712679070731,-768.22,0.00020821,2]
[322001701,1712679070760,-624.95,0.00020821,2]
[322001702,1712679070788,-908.09,0.00020821,2]
[322001703,1712679070816,-500.0,0.00020821,2]
[322001704,1712679070844,-1138.52,0.00020821,2]
[322001705,1712679070873,-500.0,0.00020821,2]
[322001706,1712679071083,-2538.08,0.00020821,2]
[322001707,1712679071114,-877.67,0.00020821,2]
[322001708,1712679071144,-1358.03,0.00020821,2]
[322001709,1712679071172,-1488.04,0.00020821,2]
[322001710,1712679071202,-687.56,0.00020821,2]
[322001711,1712679071235,-1161.78,0.00020821,2]
[322001712,1712679071265,-971.84,0.00020821,2]
[322001713,1712679071294,-1093.14,0.00020821,2]
[322001714,1712679071321,-500.0,0.00020821,2]
[322001715,1712679071349,-4212.49,0.00020821,2]
[322001716,1712679071377,-500.0,0.00020821,2]
[322001717,1712679071403,-771.53,0.00020821,2]
[322001718,1712679071431,-943.54,0.00020821,2]
[322001719,1712679071459,-906.15,0.00020821,2]
[322001720,1712679071487,-169.67970871,0.00020821,2]
[322001721,1712679071515,-500.0,0.00020821,2]
[322001722,1712679071544,-500.0,0.00020821,2]
[322001723,1712679071571,-812.14,0.00020821,2]
[322001724,1712679071598,-1238.17,0.00020821,2]
[322001725,1712679071627,-500.0,0.00020821,2]
[322001726,1712679071656,-500.0,0.00020821,2]
[322001727,1712679071685,-756.29,0.00020821,2]
[322001728,1712679071716,-13148.44,0.00020821,2]
[322001729,1712679071743,-500.0,0.00020821,2]
[322001730,1712679071772,-2186.99,0.00020821,2]
[322001731,1712679071801,-2956.31,0.00020821,2]
[322001732,1712679071831,-940.96,0.00020821,2]
[322001733,1712679071859,-527.3609238,0.00020821,2]
[322001734,1712679071888,-1571.51,0.00020821,2]
[322001735,1712679071916,-500.0,0.00020821,2]
[322001736,1712679071942,-1827.09,0.00020821,2]
[322001737,1712679071969,-528.83,0.00020821,2]
[322001738,1712679071996,-500.0,0.00020821,2]
[322001739,1712679072024,-1461.13,0.00020821,2]
[322001740,1712679072054,-4206.05,0.00020821,2]
[322001741,1712679072084,-1772.99,0.00020821,2]
[322001742,1712679072112,-500.0,0.00020821,2]
[322001743,1712679072138,-500.0,0.00020821,2]
[322001744,1712679072166,-500.0,0.00020821,2]
[322001745,1712679072192,-500.0,0.00020821,2]
[322001746,1712679072221,-11527.02,0.00020821,2]
[322001747,1712679072250,-2906.55,0.00020821,2]
[322001748,1712679072277,-480.23927852,0.00020821,2]
[322001749,1712679072306,-1211.1,0.00020821,2]
[322001750,1712679072333,-500.0,0.00020821,2]
[322001751,1712679072359,-3002.38,0.00020821,2]
[322001752,1712679072386,-1001.59,0.00020821,2]
[322001753,1712679072415,-1187.63,0.00020821,2]
[322001754,1712679072443,-500.0,0.00020821,2]
[322001755,1712679072471,-500.0,0.00020821,2]
[322001756,1712679072501,-2755.41,0.00020821,2]
[322001757,1712679072530,-512.62,0.00020821,2]
[322001758,1712679072559,-500.0,0.00020821,2]
[322001759,1712679072586,-891.48,0.00020821,2]
[322001760,1712679072615,-500.0,0.00020821,2]
[322001761,1712679072643,-1444.85,0.00020821,2]
[322001762,1712679072669,-500.0,0.00020821,2]